Workbook

Sheet Расчет суммы (корректировка РМ) (hidden)
B2: =#REF! -> 
A4: Общая сумма кредита утвержденная РМ (ИТОГО) | C4: 0 | H4: Тип | I4: Название СК | J4: коэф. | K4: Знач
A5: Новая сумма клиенту | C5: =IFERROR(MROUND(C4/K5,100),"") ->  | G5: Cтраховка | H5: =#REF! ->  | I5: =#REF! ->  | J5: =#REF! ->  | K5: =(J5/1)+1 -> 
A6: Новая сумма страховой организации | C6: =IFERROR((C4)-(C5),"") -> 
A7: Сумма, которую необходимо внести клиенту в кассу магазина. | C7: =#REF!-'Расчет суммы (корректировка РМ)'!C5 -> 
A8: Новые параметры кредитования
A10: Процентная ставка по договору | C10: =IF(C6="","",#REF!) -> 
A11: Cрок кредита (мес.) | C11: =IF(C6="","",#REF!) -> 
A12: Ежемесячный платеж по кредиту (BYR) | C12: =IFERROR(CEILING(C4*(C10/12)/(1-POWER(1+C10/12,-C11)),1000),"") -> 
A13: Абонентская плата за использование пакета услуг (BYR) | C13: =IF(C6="","",#REF!) -> 
A15: ИТОГО Сумма ежемесячного платежа | C15: =IF(C6="","",(SUM(C12:C13))) -> 

Sheet Обучающий материал (hidden)
A2: I | B2: Расчет доступной суммы кредита для кредитного продукта
B4: Расчет доступной суммы кредита осуществляется с обязательным заполнением следующих полей:
B6: 1 | C6: Выбор программы кредитования
B7: 2 | C7: Запрашиваемый срок кредита (По умолчанию рассчитывается исходя из срока 60 мес.)
C8: При желании клиента оформить кредит на иной срок - запрашиваемый срок кредита необходимо изменить .
B9: 3 | C9: Подтвержденный доход
B10: 4 | C10: Выплаты по кредитам
B11: 5 | C11: Иные платежа кроме коммунальных
B12: 6 | C12: Количество членов семьи
B13: После заполнения вышеуказанных полей вы сможете увидеть максимально доступную сумму кредита,
B14: без дополнительной проверки путем ввода максимальной суммы кредита в поле "Запрашиваемая сумма кредита".
A33: II | B33: Работа с вкладкой калькулятора «Расчет суммы (корректировка РМ)»
B34: Для корректного пересчета суммы кредита с/без страховки , сниженной при рассмотрении риск-менеджером, необходимо:
B36: 1.На вкладке «Калькулятор» обязательно заполняем следующие поля:
B37: 1.1. Программа кредитования
B38: 1.2. Указать сумму товара по Счет-Фактуре
B39: 1.3. Указать сумму первоночального взноса | E39: (если имеется)
B40: 1.4. Указать срок
B41: *информация в полях должна четко соответствовать первоначально введенным параметрам по заявке до рассмотрения риск-менеджером.
B55: 2. Переходим на вкладку «Расчет суммы (корректировки РМ)
B56: 2.1. В поле "Общая сумма кредита утвержденная РМ (ИТОГО) вводим утвержденную сумму риск-менеджером.
B82: 3.В поле "Общая сумма кредита утвержденная (РМ)" - необходимо внести сумму которую утвердил РМ.
B107: 4. Получаете обновленную информацию:
B108: - Новая сумма клиенту
B109: - Новая сумма страховой организации
B110: - Сумма, которую необходимо внести клиенту в кассу магазина.

Sheet Новый график 2 ставки+отсрочка
A1: Предварительный график платежей по кредиту | I1: Даты
A2: Дата договора | D2: =TODAY() -> 2026-02-17 | I2: Дата выдачи кредита/сегодня | N2: =D2 -> 2026-02-17 | O2: =DATE(YEAR(Дата_выдачи_кредита),MONTH(Дата_выдачи_кредита),DAY(N4)) -> 2026-02-17
A3: ППС Начало/конец | D3: =SUM(D13:D132)*360/SUM(W13:W132) -> 0.1637196546 | E3: =SUM(D13:D132)*360/SUM(X13:X132) -> 0.1715755573 | I3: Дата начала действаия 2-й ставки | N3: =Дата_выдачи_кредита+Кол_во_Льготных_дней -> 2026-03-24
A4: Сумма кредита | D4: 12000 | I4: Платежная дата | N4: =DAY(Дата_выдачи_кредита) -> 17
A5: Срок кредита (мес.) | D5: 36 | I5: Количество дней после платежной даты | N5: =IF((N6-Платежная_дата<0),0,N6-Платежная_дата) -> 13
A6: %-ставка по договору(Льготная /Основная) | D6: 0.04 | E6: 0.1799 | I6: Количество дней в месяце | N6: 30
A7: Отсрочка платежа по ОД (мес.) | D7: 0 | I7: количество льгодных дней в периоде с ID = 2 | N7: =IF((DAY(Дата_второй_ставки))=1,Платежная_дата,IF((DAY(Дата_второй_ставки-1))>30,30,DAY(Дата_второй_ставки-1))) -> 23
A8: Срок действия льготной ставки (дней) | D8: 35 | I8: количество НЕ_льгодных дней в периоде с ID = 2 | N8: =IF((N6-N7)<0,0,N6-N7) -> 7
A10: Итого (бел.руб.) | C10: =SUM(C13:C132) -> 12000 | D10: =SUM(D13:D132) -> 3448.35 | E10: =SUM(E13:E132) -> 15448.35
I11: Для ОД | J11: Для процентов | L11: начисление % (сроки) | N11: ID | O11: Количество дней для 1-й ставки | P11: Количество дней для 2-й ставки | Q11: Расчет суммы процентов | R11: %
A12: Платеж | B12: Дата платежа | C12: Сумма платежа по ОД (бел.руб) | D12: Сумма платежа по % (бел.руб) | E12: Сумма платежа по кредиту (бел.руб) | I12: Остаток ОД | J12: Остаток ОД на начало | K12: Остаток ОД на конец | L12: дата начала периода начисления | M12: дата конеца периода начисления | R12: для ID 1 ставки | S12: для ID 2 ставки | T12: для ID 3 ставки | U12: для ID 4 ставки | W12: Среднедневные остатки на начало | X12: Среднедневные остатки на конец
A13: =IF(Срок_Кредита<1,"",1) -> 1 | B13: =IFERROR((DATE(YEAR(O2),MONTH(O2)+1,DAY(O2))),"") -> 2026-03-17 | C13: =IF(A13="","",IF(A13<=Отсрочка_ОД,0,ROUND((I13*(Основная_Ставка/12)/(1-POWER(1+Основная_Ставка/12,-Срок_Кредита))),2)-ROUND((I13*Основная_Ставка/12),2))) -> 253.87 | D13: =IF(A13="","",Q13) -> 17.33 | E13: =IF(A13="","",C13+D13) -> 271.2 | I13: =IF(A13="","",Сумма_Кредита) -> 12000 | J13: =IF(A13="","",I13) -> 12000 | K13: =IF(A13="","",J13) -> 12000 | L13: =IF(A13="","",DATE(YEAR(Дата_выдачи_кредита),MONTH(Дата_выдачи_кредита),DAY(Дата_выдачи_кредита))) -> 2026-02-17 | M13: =IF(A13="","",EOMONTH(L13,0)) -> 2026-02-28 | N13: =IF(A13="","",IF(A13=Срок_Кредита,4,IF(Кол_во_Льготных_дней=0,1,IF(Дата_второй_ставки>M13,1,IF(Дата_второй_ставки>=L13,IF(Дата_второй_ставки<=M13,2),3))))) -> 1 | O13: =IF(A13="","",IF(N13=1,$N$5,IF(N13=2,Кол_во_Льготных_дней-1,0))) -> 13 | P13: =IF(A13="","",N5-O13) -> 0 | Q13: =IF(A13="","",ROUND((J13*Льготная_Ставка*O13/360)+(K13*Основная_Ставка*P13/360),2)) -> 17.33 | W13: =IFERROR(J13*30,0) -> 360000 | X13: =IFERROR(K13*30,0) -> 360000
A14: =IF(Срок_Кредита<2,"",2) -> 2 | B14: =IF(A14="","",IFERROR((DATE(YEAR(B13),MONTH(B13)+1,DAY(B13))),"")) -> 2026-04-17 | C14: =IF(A14="","",IF(A14<=Отсрочка_ОД,0,ROUND((I14*(Основная_Ставка/12)/(1-POWER(1+Основная_Ставка/12,-(Срок_Кредита-A13)))),2)-ROUND((I14*Основная_Ставка/12),2))) -> 257.68 | D14: 71.59 | E14: =IF(A14="","",C14+D14) -> 329.27 | I14: =IF(A14="","",I13-C13) -> 11746.13 | J14: =IF(A14="","",K13) -> 12000 | K14: =IF(A14="","",I14) -> 11746.13 | L14: =IF(A14="","",DATE(YEAR(Дата_выдачи_кредита),MONTH(Дата_выдачи_кредита)+A13,DAY(1))) -> 2026-03-01 | M14: 2026-03-31 | N14: =IF(A14="","",IF(A14=Срок_Кредита,4,IF(Кол_во_Льготных_дней=0,3,IF(Дата_второй_ставки>=M14,1,IF(Дата_второй_ставки>L14,IF(Дата_второй_ставки<M14,2),3))))) -> 2 | O14: =IF(A14="","",IF(N14=1,Платежная_дата,IF(N14=2,$N$7,Платежная_дата))) -> 23 | P14: =IF(A14="","",IF(N14=1,$N$5,IF(N14=2,$N$8,$N$5))) -> 7 | Q14: =IF(A14="","",IF(N14=1,R14,IF(N14=2,S14,IF(N14=3,T14,IF(N14=4,U14))))) -> 71.59 | R14: =IF(A14="","",ROUND((J14*Льготная_Ставка*O14/360)+(K14*Льготная_Ставка*P14/360),2)) -> 39.8 | S14: =IF(A14="","",IF($N$7<Платежная_дата,(ROUND((J14*Льготная_Ставка*$N$7/360)+(J14*Основная_Ставка*(Платежная_дата-$N$7)/360)+(K14*Основная_Ставка*$N$5/360),2)),IF($N$7=Платежная_дата,(ROUND((J14*Льготная_Ставка*Платежная_дата/360)+(K14*Основная_Ставка*$N$5/360),2)),IF($N$7>Платежная_дата,(ROUND((J14*Льготная_Ставка*Платежная_дата/360)+(K14*Льготная_Ставка*($N$7-Платежная_дата)/360)+(K14*Основная_Ставка*$N$8/360),2)))))) -> 71.59 | T14: =IF(A14="","",ROUND((J14*Основная_Ставка*O14/360)+(K14*Основная_Ставка*P14/360),2)) -> 179.01 | U14: =IF(A14="","",ROUND((J14*Основная_Ставка*O14/360)+(K14*Основная_Ставка*P14/360)+(K14*Основная_Ставка*Платежная_дата/360),2)) -> 278.8 | W14: =IFERROR(J14*30,0) -> 360000 | X14: =IFERROR(K14*30,0) -> 352383.9
A15: =IF(Срок_Кредита<3,"",3) -> 3 | B15: =IF(A15="","",IFERROR((DATE(YEAR(B14),MONTH(B14)+1,DAY(B14))),"")) -> 2026-05-17 | C15: 261.54 | D15: 174.42 | E15: 435.96 | I15: 11488.45 | J15: 11746.13 | K15: 11488.45 | L15: 2026-04-01 | M15: 2026-04-30 | N15: 3 | O15: 17 | P15: =IF(A15="","",IF(N15=1,$N$5,IF(N15=2,$N$8,$N$5))) -> 13 | Q15: 174.42 | R15: 38.78 | S15: 70.03 | T15: 174.42 | U15: 272.02 | W15: 352383.9 | X15: 344653.5
A16: =IF(Срок_Кредита<4,"",4) -> 4 | B16: 2026-06-17 | C16: 265.46 | D16: 170.53 | E16: 435.99 | I16: 11226.91 | J16: 11488.45 | K16: 11226.91 | L16: 2026-05-01 | M16: 2026-05-31 | N16: 3 | O16: 17 | P16: 13 | Q16: 170.53 | R16: 37.92 | S16: 68.46 | T16: 170.53 | U16: 265.91 | W16: 344653.5 | X16: 336807.3
A17: =IF(Срок_Кредита<5,"",5) -> 5 | B17: 2026-07-17 | C17: 269.44 | D17: 166.59 | E17: 436.03 | I17: 10961.45 | J17: 11226.91 | K17: 10961.45 | L17: 2026-06-01 | M17: 2026-06-30 | N17: 3 | O17: 17 | P17: 13 | Q17: 166.59 | R17: 37.04 | S17: 66.86 | T17: 166.59 | U17: 259.71 | W17: 336807.3 | X17: 328843.5
A18: =IF(Срок_Кредита<6,"",6) -> 6 | B18: 2026-08-17 | C18: 273.48 | D18: 162.58 | E18: 436.06 | I18: 10692.01 | J18: 10961.45 | K18: 10692.01 | L18: 2026-07-01 | M18: 2026-07-31 | N18: 3 | O18: 17 | P18: 13 | Q18: 162.58 | R18: 36.15 | S18: 65.23 | T18: 162.58 | U18: 253.41 | W18: 328843.5 | X18: 320760.3
A19: =IF(Срок_Кредита<7,"",7) -> 7 | B19: 2026-09-17 | C19: 277.58 | D19: 158.51 | E19: 436.09 | I19: 10418.53 | J19: 10692.01 | K19: 10418.53 | L19: 2026-08-01 | M19: 2026-08-31 | N19: 3 | O19: 17 | P19: 13 | Q19: 158.51 | R19: 35.25 | S19: 63.59 | T19: 158.51 | U19: 247.02 | W19: 320760.3 | X19: 312555.9
A20: =IF(Срок_Кредита<8,"",8) -> 8 | B20: 2026-10-17 | C20: 281.74 | D20: 154.39 | E20: 436.13 | I20: 10140.95 | J20: 10418.53 | K20: 10140.95 | L20: 2026-09-01 | M20: 2026-09-30 | N20: 3 | O20: 17 | P20: 13 | Q20: 154.39 | R20: 34.33 | S20: 61.91 | T20: 154.39 | U20: 240.54 | W20: 312555.9 | X20: 304228.5
A21: =IF(Срок_Кредита<9,"",9) -> 9 | B21: 2026-11-17 | C21: 285.96 | D21: 150.2 | E21: 436.16 | I21: 9859.21 | J21: 10140.95 | K21: 9859.21 | L21: 2026-10-01 | M21: 2026-10-31 | N21: 3 | O21: 17 | P21: 13 | Q21: 150.2 | R21: 33.4 | S21: 60.22 | T21: 150.2 | U21: 233.96 | W21: 304228.5 | X21: 295776.3
A22: =IF(Срок_Кредита<10,"",10) -> 10 | B22: 2026-12-17 | C22: 290.25 | D22: 145.95 | E22: 436.2 | I22: 9573.25 | J22: 9859.21 | K22: 9573.25 | L22: 2026-11-01 | M22: 2026-11-30 | N22: 3 | O22: 17 | P22: 13 | Q22: 145.95 | R22: 32.45 | S22: 58.49 | T22: 145.95 | U22: 227.28 | W22: 295776.3 | X22: 287197.5
A23: =IF(Срок_Кредита<11,"",11) -> 11 | B23: 2027-01-17 | C23: 294.6 | D23: 141.63 | E23: 436.23 | I23: 9283 | J23: 9573.25 | K23: 9283 | L23: 2026-12-01 | M23: 2026-12-31 | N23: 3 | O23: 17 | P23: 13 | Q23: 141.63 | R23: 31.49 | S23: 56.74 | T23: 141.63 | U23: 220.5 | W23: 287197.5 | X23: 278490
A24: =IF(Срок_Кредита<12,"",12) -> 12 | B24: 2027-02-17 | C24: 299.02 | D24: 137.25 | E24: 436.27 | I24: 8988.4 | J24: 9283 | K24: 8988.4 | L24: 2027-01-01 | M24: 2027-01-31 | N24: 3 | O24: 17 | P24: 13 | Q24: 137.25 | R24: 30.52 | S24: 54.97 | T24: 137.25 | U24: 213.61 | W24: 278490 | X24: 269652
A25: =IF(Срок_Кредита<13,"",13) -> 13 | B25: 2027-03-17 | C25: 303.5 | D25: 132.81 | E25: 436.31 | I25: 8689.38 | J25: 8988.4 | K25: 8689.38 | L25: 2027-02-01 | M25: 2027-02-28 | N25: 3 | O25: 17 | P25: 13 | Q25: 132.81 | R25: 29.53 | S25: 53.17 | T25: 132.81 | U25: 206.63 | W25: 269652 | X25: 260681.4
A26: =IF(Срок_Кредита<14,"",14) -> 14 | B26: 2027-04-17 | C26: 308.05 | D26: 128.3 | E26: 436.35 | I26: 8385.88 | J26: 8689.38 | K26: 8385.88 | L26: 2027-03-01 | M26: 2027-03-31 | N26: 3 | O26: 17 | P26: 13 | Q26: 128.3 | R26: 28.53 | S26: 51.34 | T26: 128.3 | U26: 199.54 | W26: 260681.4 | X26: 251576.4
A27: =IF(Срок_Кредита<15,"",15) -> 15 | B27: 2027-05-17 | C27: 312.67 | D27: 123.72 | E27: 436.39 | I27: 8077.83 | J27: 8385.88 | K27: 8077.83 | L27: 2027-04-01 | M27: 2027-04-30 | N27: 3 | O27: 17 | P27: 13 | Q27: 123.72 | R27: 27.51 | S27: 49.48 | T27: 123.72 | U27: 192.34 | W27: 251576.4 | X27: 242334.9
A28: =IF(Срок_Кредита<16,"",16) -> 16 | B28: 2027-06-17 | C28: 317.36 | D28: 119.07 | E28: 436.43 | I28: 7765.16 | J28: 8077.83 | K28: 7765.16 | L28: 2027-05-01 | M28: 2027-05-31 | N28: 3 | O28: 17 | P28: 13 | Q28: 119.07 | R28: 26.47 | S28: 47.6 | T28: 119.07 | U28: 185.04 | W28: 242334.9 | X28: 232954.8
A29: =IF(Срок_Кредита<17,"",17) -> 17 | B29: 2027-07-17 | C29: 322.12 | D29: 114.35 | E29: 436.47 | I29: 7447.8 | J29: 7765.16 | K29: 7447.8 | L29: 2027-06-01 | M29: 2027-06-30 | N29: 3 | O29: 17 | P29: 13 | Q29: 114.35 | R29: 25.43 | S29: 45.69 | T29: 114.35 | U29: 177.62 | W29: 232954.8 | X29: 223434
A30: =IF(Срок_Кредита<18,"",18) -> 18 | B30: 2027-08-17 | C30: 326.94 | D30: 109.56 | E30: 436.5 | I30: 7125.68 | J30: 7447.8 | K30: 7125.68 | L30: 2027-07-01 | M30: 2027-07-31 | N30: 3 | O30: 17 | P30: 13 | Q30: 109.56 | R30: 24.36 | S30: 43.74 | T30: 109.56 | U30: 170.1 | W30: 223434 | X30: 213770.4
A31: =IF(Срок_Кредита<19,"",19) -> 19 | B31: 2027-09-17 | C31: 331.85 | D31: 104.7 | E31: 436.55 | I31: 6798.74 | J31: 7125.68 | K31: 6798.74 | L31: 2027-08-01 | M31: 2027-08-31 | N31: 3 | O31: 17 | P31: 13 | Q31: 104.7 | R31: 23.28 | S31: 41.77 | T31: 104.7 | U31: 162.46 | W31: 213770.4 | X31: 203962.2
A32: =IF(Срок_Кредита<20,"",20) -> 20 | B32: 2027-10-17 | C32: 336.82 | D32: 99.77 | E32: 436.59 | I32: 6466.89 | J32: 6798.74 | K32: 6466.89 | L32: 2027-09-01 | M32: 2027-09-30 | N32: 3 | O32: 17 | P32: 13 | Q32: 99.77 | R32: 22.18 | S32: 39.77 | T32: 99.77 | U32: 154.71 | W32: 203962.2 | X32: 194006.7
A33: =IF(Срок_Кредита<21,"",21) -> 21 | B33: 2027-11-17 | C33: 341.87 | D33: 94.76 | E33: 436.63 | I33: 6130.07 | J33: 6466.89 | K33: 6130.07 | L33: 2027-10-01 | M33: 2027-10-31 | N33: 3 | O33: 17 | P33: 13 | Q33: 94.76 | R33: 21.07 | S33: 37.75 | T33: 94.76 | U33: 146.84 | W33: 194006.7 | X33: 183902.1
A34: =IF(Срок_Кредита<22,"",22) -> 22 | B34: 2027-12-17 | C34: 347 | D34: 89.68 | E34: 436.68 | I34: 5788.2 | J34: 6130.07 | K34: 5788.2 | L34: 2027-11-01 | M34: 2027-11-30 | N34: 3 | O34: 17 | P34: 13 | Q34: 89.68 | R34: 19.94 | S34: 35.69 | T34: 89.68 | U34: 138.85 | W34: 183902.1 | X34: 173646
A35: =IF(Срок_Кредита<23,"",23) -> 23 | B35: 2028-01-17 | C35: 352.19 | D35: 84.52 | E35: 436.71 | I35: 5441.2 | J35: 5788.2 | K35: 5441.2 | L35: 2027-12-01 | M35: 2027-12-31 | N35: 3 | O35: 17 | P35: 13 | Q35: 84.52 | R35: 18.79 | S35: 33.59 | T35: 84.52 | U35: 130.75 | W35: 173646 | X35: 163236
A36: =IF(Срок_Кредита<24,"",24) -> 24 | B36: 2028-02-17 | C36: 357.47 | D36: 79.28 | E36: 436.75 | I36: 5089.01 | J36: 5441.2 | K36: 5089.01 | L36: 2028-01-01 | M36: 2028-01-31 | N36: 3 | O36: 17 | P36: 13 | Q36: 79.28 | R36: 17.63 | S36: 31.47 | T36: 79.28 | U36: 122.52 | W36: 163236 | X36: 152670.3
A37: =IF(Срок_Кредита<25,"",25) -> 25 | B37: 2028-03-17 | C37: 362.84 | D37: 73.97 | E37: 436.81 | I37: 4731.54 | J37: 5089.01 | K37: 4731.54 | L37: 2028-02-01 | M37: 2028-02-29 | N37: 3 | O37: 17 | P37: 13 | Q37: 73.97 | R37: 16.45 | S37: 29.32 | T37: 73.97 | U37: 114.17 | W37: 152670.3 | X37: 141946.2
A38: =IF(Срок_Кредита<26,"",26) -> 26 | B38: 2028-04-17 | C38: 368.27 | D38: 68.58 | E38: 436.85 | I38: 4368.7 | J38: 4731.54 | K38: 4368.7 | L38: 2028-03-01 | M38: 2028-03-31 | N38: 3 | O38: 17 | P38: 13 | Q38: 68.58 | R38: 15.25 | S38: 27.13 | T38: 68.58 | U38: 105.69 | W38: 141946.2 | X38: 131061
A39: =IF(Срок_Кредита<27,"",27) -> 27 | B39: 2028-05-17 | C39: 373.79 | D39: 63.1 | E39: 436.89 | I39: 4000.43 | J39: 4368.7 | K39: 4000.43 | L39: 2028-04-01 | M39: 2028-04-30 | N39: 3 | O39: 17 | P39: 13 | Q39: 63.1 | R39: 14.03 | S39: 24.91 | T39: 63.1 | U39: 97.09 | W39: 131061 | X39: 120012.9
A40: =IF(Срок_Кредита<28,"",28) -> 28 | B40: 2028-06-17 | C40: 379.39 | D40: 57.54 | E40: 436.93 | I40: 3626.64 | J40: 4000.43 | K40: 3626.64 | L40: 2028-05-01 | M40: 2028-05-31 | N40: 3 | O40: 17 | P40: 13 | Q40: 57.54 | R40: 12.79 | S40: 22.66 | T40: 57.54 | U40: 88.35 | W40: 120012.9 | X40: 108799.2
A41: =IF(Срок_Кредита<29,"",29) -> 29 | B41: 2028-07-17 | C41: 385.08 | D41: 51.9 | E41: 436.98 | I41: 3247.25 | J41: 3626.64 | K41: 3247.25 | L41: 2028-06-01 | M41: 2028-06-30 | N41: 3 | O41: 17 | P41: 13 | Q41: 51.9 | R41: 11.54 | S41: 20.37 | T41: 51.9 | U41: 79.49 | W41: 108799.2 | X41: 97417.5
A42: =IF(Срок_Кредита<30,"",30) -> 30 | B42: 2028-08-17 | C42: 390.86 | D42: 46.18 | E42: 437.04 | I42: 2862.17 | J42: 3247.25 | K42: 2862.17 | L42: 2028-07-01 | M42: 2028-07-31 | N42: 3 | O42: 17 | P42: 13 | Q42: 46.18 | R42: 10.27 | S42: 18.05 | T42: 46.18 | U42: 70.49 | W42: 97417.5 | X42: 85865.1
A43: =IF(Срок_Кредита<31,"",31) -> 31 | B43: 2028-09-17 | C43: 396.71 | D43: 40.37 | E43: 437.08 | I43: 2471.31 | J43: 2862.17 | K43: 2471.31 | L43: 2028-08-01 | M43: 2028-08-31 | N43: 3 | O43: 17 | P43: 13 | Q43: 40.37 | R43: 8.98 | S43: 15.7 | T43: 40.37 | U43: 61.36 | W43: 85865.1 | X43: 74139.3
A44: =IF(Срок_Кредита<32,"",32) -> 32 | B44: 2028-10-17 | C44: 402.67 | D44: 34.47 | E44: 437.14 | I44: 2074.6 | J44: 2471.31 | K44: 2074.6 | L44: 2028-09-01 | M44: 2028-09-30 | N44: 3 | O44: 17 | P44: 13 | Q44: 34.47 | R44: 7.66 | S44: 13.31 | T44: 34.47 | U44: 52.1 | W44: 74139.3 | X44: 62238
A45: =IF(Срок_Кредита<33,"",33) -> 33 | B45: 2028-11-17 | C45: 408.69 | D45: =IF(A45="","",Q45) -> 28.49 | E45: 437.18 | I45: 1671.93 | J45: 2074.6 | K45: 1671.93 | L45: 2028-10-01 | M45: =IF(A45="","",EOMONTH(L45,0)) -> 2028-10-31 | N45: 3 | O45: 17 | P45: 13 | Q45: 28.49 | R45: 6.33 | S45: 10.88 | T45: 28.49 | U45: 42.69 | W45: 62238 | X45: 50157.9
A46: =IF(Срок_Кредита<34,"",34) -> 34 | B46: 2028-12-17 | C46: =IF(A46="","",IF(A46<=Отсрочка_ОД,0,ROUND((I46*(Основная_Ставка/12)/(1-POWER(1+Основная_Ставка/12,-(Срок_Кредита-A45)))),2)-ROUND((I46*Основная_Ставка/12),2))) -> 414.83 | D46: 22.41 | E46: 437.24 | I46: =IF(A46="","",I45-C45) -> 1263.24 | J46: =IF(A46="","",K45) -> 1671.93 | K46: =IF(A46="","",I46) -> 1263.24 | L46: =IF(A46="","",DATE(YEAR(Дата_выдачи_кредита),MONTH(Дата_выдачи_кредита)+A45,DAY(1))) -> 2028-11-01 | M46: 2028-11-30 | N46: =IF(A46="","",IF(A46=Срок_Кредита,4,IF(Кол_во_Льготных_дней=0,3,IF(Дата_второй_ставки>=M46,1,IF(Дата_второй_ставки>L46,IF(Дата_второй_ставки<M46,2),3))))) -> 3 | O46: =IF(A46="","",IF(N46=1,Платежная_дата,IF(N46=2,$N$7,Платежная_дата))) -> 17 | P46: 13 | Q46: =IF(A46="","",IF(N46=1,R46,IF(N46=2,S46,IF(N46=3,T46,IF(N46=4,U46))))) -> 22.41 | R46: =IF(A46="","",ROUND((J46*Льготная_Ставка*O46/360)+(K46*Льготная_Ставка*P46/360),2)) -> 4.98 | S46: =IF(A46="","",IF($N$7<Платежная_дата,(ROUND((J46*Льготная_Ставка*$N$7/360)+(J46*Основная_Ставка*(Платежная_дата-$N$7)/360)+(K46*Основная_Ставка*$N$5/360),2)),IF($N$7=Платежная_дата,(ROUND((J46*Льготная_Ставка*Платежная_дата/360)+(K46*Основная_Ставка*$N$5/360),2)),IF($N$7>Платежная_дата,(ROUND((J46*Льготная_Ставка*Платежная_дата/360)+(K46*Льготная_Ставка*($N$7-Платежная_дата)/360)+(K46*Основная_Ставка*$N$8/360),2)))))) -> 8.42 | T46: =IF(A46="","",ROUND((J46*Основная_Ставка*O46/360)+(K46*Основная_Ставка*P46/360),2)) -> 22.41 | U46: =IF(A46="","",ROUND((J46*Основная_Ставка*O46/360)+(K46*Основная_Ставка*P46/360)+(K46*Основная_Ставка*Платежная_дата/360),2)) -> 33.14 | W46: 50157.9 | X46: 37897.2
A47: =IF(Срок_Кредита<35,"",35) -> 35 | B47: 2029-01-17 | C47: 421.05 | D47: 16.24 | E47: 437.29 | I47: 848.41 | J47: 1263.24 | K47: 848.41 | L47: 2028-12-01 | M47: 2028-12-31 | N47: 3 | O47: 17 | P47: 13 | Q47: 16.24 | R47: 3.61 | S47: 5.92 | T47: 16.24 | U47: 23.45 | W47: 37897.2 | X47: 25452.3
A48: =IF(Срок_Кредита<36,"",36) -> 36 | B48: 2029-02-17 | C48: 427.36 | D48: 13.61 | E48: 440.97 | I48: 427.36 | J48: 848.41 | K48: 427.36 | L48: 2029-01-01 | M48: 2029-01-31 | N48: 4 | O48: 17 | P48: 13 | Q48: 13.61 | R48: 2.22 | S48: 3.38 | T48: 9.98 | U48: 13.61 | W48: 25452.3 | X48: 12820.8
A49: =IF(Срок_Кредита<37,"",37) ->  | W49: 0 | X49: 0
A50: =IF(Срок_Кредита<38,"",38) ->  | W50: 0 | X50: 0
A51: =IF(Срок_Кредита<39,"",39) ->  | W51: 0 | X51: 0
A52: =IF(Срок_Кредита<40,"",40) ->  | W52: 0 | X52: 0
A53: =IF(Срок_Кредита<41,"",41) ->  | W53: 0 | X53: 0
A54: =IF(Срок_Кредита<42,"",42) ->  | W54: 0 | X54: 0
A55: =IF(Срок_Кредита<43,"",43) ->  | W55: 0 | X55: 0
A56: =IF(Срок_Кредита<44,"",44) ->  | W56: 0 | X56: 0
A57: =IF(Срок_Кредита<45,"",45) ->  | W57: 0 | X57: 0
A58: =IF(Срок_Кредита<46,"",46) ->  | W58: 0 | X58: 0
A59: =IF(Срок_Кредита<47,"",47) ->  | W59: 0 | X59: 0
A60: =IF(Срок_Кредита<48,"",48) ->  | W60: 0 | X60: 0
A61: =IF(Срок_Кредита<49,"",49) ->  | W61: 0 | X61: 0
A62: =IF(Срок_Кредита<50,"",50) ->  | W62: 0 | X62: 0
A63: =IF(Срок_Кредита<51,"",51) ->  | W63: 0 | X63: 0
A64: =IF(Срок_Кредита<52,"",52) ->  | W64: 0 | X64: 0
A65: =IF(Срок_Кредита<53,"",53) ->  | W65: 0 | X65: 0
A66: =IF(Срок_Кредита<54,"",54) ->  | W66: 0 | X66: 0
A67: =IF(Срок_Кредита<55,"",55) ->  | W67: 0 | X67: 0
A68: =IF(Срок_Кредита<56,"",56) ->  | W68: 0 | X68: 0
A69: =IF(Срок_Кредита<57,"",57) ->  | W69: 0 | X69: 0
A70: =IF(Срок_Кредита<58,"",58) ->  | W70: 0 | X70: 0
A71: =IF(Срок_Кредита<59,"",59) ->  | W71: 0 | X71: 0
A72: =IF(Срок_Кредита<60,"",60) ->  | W72: 0 | X72: 0
A73: =IF(Срок_Кредита<61,"",61) ->  | W73: 0 | X73: 0
A74: =IF(Срок_Кредита<62,"",62) ->  | W74: 0 | X74: 0
A75: =IF(Срок_Кредита<63,"",63) ->  | W75: 0 | X75: 0
A76: =IF(Срок_Кредита<64,"",64) ->  | W76: 0 | X76: 0
A77: =IF(Срок_Кредита<65,"",65) ->  | W77: 0 | X77: 0
A78: =IF(Срок_Кредита<66,"",66) ->  | E78: =IF(A78="","",C78+D78) ->  | W78: =IFERROR(J78*30,0) -> 0 | X78: =IFERROR(K78*30,0) -> 0
A79: =IF(Срок_Кредита<67,"",67) ->  | B79: =IF(A79="","",IFERROR((DATE(YEAR(B78),MONTH(B78)+1,DAY(B78))),"")) ->  | P79: =IF(A79="","",IF(N79=1,$N$5,IF(N79=2,$N$8,$N$5))) ->  | W79: 0 | X79: 0
A80: =IF(Срок_Кредита<68,"",68) ->  | W80: 0 | X80: 0
A81: =IF(Срок_Кредита<69,"",69) ->  | W81: 0 | X81: 0
A82: =IF(Срок_Кредита<70,"",70) ->  | W82: 0 | X82: 0
A83: =IF(Срок_Кредита<71,"",71) ->  | W83: 0 | X83: 0
A84: =IF(Срок_Кредита<72,"",72) ->  | W84: 0 | X84: 0
A85: =IF(Срок_Кредита<73,"",73) ->  | W85: 0 | X85: 0
A86: =IF(Срок_Кредита<74,"",74) ->  | W86: 0 | X86: 0
A87: =IF(Срок_Кредита<75,"",75) ->  | W87: 0 | X87: 0
A88: =IF(Срок_Кредита<76,"",76) ->  | W88: 0 | X88: 0
A89: =IF(Срок_Кредита<77,"",77) ->  | W89: 0 | X89: 0
A90: =IF(Срок_Кредита<78,"",78) ->  | W90: 0 | X90: 0
A91: =IF(Срок_Кредита<79,"",79) ->  | W91: 0 | X91: 0
A92: =IF(Срок_Кредита<80,"",80) ->  | W92: 0 | X92: 0
A93: =IF(Срок_Кредита<81,"",81) ->  | W93: 0 | X93: 0
A94: =IF(Срок_Кредита<82,"",82) ->  | W94: 0 | X94: 0
A95: =IF(Срок_Кредита<83,"",83) ->  | W95: 0 | X95: 0
A96: =IF(Срок_Кредита<84,"",84) ->  | W96: 0 | X96: 0
A97: =IF(Срок_Кредита<85,"",85) ->  | W97: 0 | X97: 0
A98: =IF(Срок_Кредита<86,"",86) ->  | W98: 0 | X98: 0
A99: =IF(Срок_Кредита<87,"",87) ->  | W99: 0 | X99: 0
A100: =IF(Срок_Кредита<88,"",88) ->  | W100: 0 | X100: 0
A101: =IF(Срок_Кредита<89,"",89) ->  | W101: 0 | X101: 0
A102: =IF(Срок_Кредита<90,"",90) ->  | W102: 0 | X102: 0
A103: =IF(Срок_Кредита<91,"",91) ->  | W103: 0 | X103: 0
A104: =IF(Срок_Кредита<92,"",92) ->  | W104: 0 | X104: 0
A105: =IF(Срок_Кредита<93,"",93) ->  | W105: 0 | X105: 0
A106: =IF(Срок_Кредита<94,"",94) ->  | W106: 0 | X106: 0
A107: =IF(Срок_Кредита<95,"",95) ->  | W107: 0 | X107: 0
A108: =IF(Срок_Кредита<96,"",96) ->  | W108: 0 | X108: 0
A109: =IF(Срок_Кредита<97,"",97) ->  | D109: =IF(A109="","",Q109) ->  | M109: =IF(A109="","",EOMONTH(L109,0)) ->  | W109: 0 | X109: 0
A110: =IF(Срок_Кредита<98,"",98) ->  | C110: =IF(A110="","",IF(A110<=Отсрочка_ОД,0,ROUND((I110*(Основная_Ставка/12)/(1-POWER(1+Основная_Ставка/12,-(Срок_Кредита-A109)))),2)-ROUND((I110*Основная_Ставка/12),2))) ->  | I110: =IF(A110="","",I109-C109) ->  | J110: =IF(A110="","",K109) ->  | K110: =IF(A110="","",I110) ->  | L110: =IF(A110="","",DATE(YEAR(Дата_выдачи_кредита),MONTH(Дата_выдачи_кредита)+A109,DAY(1))) ->  | N110: =IF(A110="","",IF(A110=Срок_Кредита,4,IF(Кол_во_Льготных_дней=0,3,IF(Дата_второй_ставки>=M110,1,IF(Дата_второй_ставки>L110,IF(Дата_второй_ставки<M110,2),3))))) ->  | O110: =IF(A110="","",IF(N110=1,Платежная_дата,IF(N110=2,$N$7,Платежная_дата))) ->  | Q110: =IF(A110="","",IF(N110=1,R110,IF(N110=2,S110,IF(N110=3,T110,IF(N110=4,U110))))) ->  | R110: =IF(A110="","",ROUND((J110*Льготная_Ставка*O110/360)+(K110*Льготная_Ставка*P110/360),2)) ->  | S110: =IF(A110="","",IF($N$7<Платежная_дата,(ROUND((J110*Льготная_Ставка*$N$7/360)+(J110*Основная_Ставка*(Платежная_дата-$N$7)/360)+(K110*Основная_Ставка*$N$5/360),2)),IF($N$7=Платежная_дата,(ROUND((J110*Льготная_Ставка*Платежная_дата/360)+(K110*Основная_Ставка*$N$5/360),2)),IF($N$7>Платежная_дата,(ROUND((J110*Льготная_Ставка*Платежная_дата/360)+(K110*Льготная_Ставка*($N$7-Платежная_дата)/360)+(K110*Основная_Ставка*$N$8/360),2)))))) ->  | T110: =IF(A110="","",ROUND((J110*Основная_Ставка*O110/360)+(K110*Основная_Ставка*P110/360),2)) ->  | U110: =IF(A110="","",ROUND((J110*Основная_Ставка*O110/360)+(K110*Основная_Ставка*P110/360)+(K110*Основная_Ставка*Платежная_дата/360),2)) ->  | W110: 0 | X110: 0
A111: =IF(Срок_Кредита<99,"",99) ->  | W111: 0 | X111: 0
A112: =IF(Срок_Кредита<100,"",100) ->  | W112: 0 | X112: 0
A113: =IF(Срок_Кредита<101,"",101) ->  | W113: 0 | X113: 0
A114: =IF(Срок_Кредита<102,"",102) ->  | W114: 0 | X114: 0
A115: =IF(Срок_Кредита<103,"",103) ->  | W115: 0 | X115: 0
A116: =IF(Срок_Кредита<104,"",104) ->  | W116: 0 | X116: 0
A117: =IF(Срок_Кредита<105,"",105) ->  | W117: 0 | X117: 0
A118: =IF(Срок_Кредита<106,"",106) ->  | W118: 0 | X118: 0
A119: =IF(Срок_Кредита<107,"",107) ->  | W119: 0 | X119: 0
A120: =IF(Срок_Кредита<108,"",108) ->  | W120: 0 | X120: 0
A121: =IF(Срок_Кредита<109,"",109) ->  | W121: 0 | X121: 0
A122: =IF(Срок_Кредита<110,"",110) ->  | W122: 0 | X122: 0
A123: =IF(Срок_Кредита<111,"",111) ->  | W123: 0 | X123: 0
A124: =IF(Срок_Кредита<112,"",112) ->  | W124: 0 | X124: 0
A125: =IF(Срок_Кредита<113,"",113) ->  | W125: 0 | X125: 0
A126: =IF(Срок_Кредита<114,"",114) ->  | W126: 0 | X126: 0
A127: =IF(Срок_Кредита<115,"",115) ->  | W127: 0 | X127: 0
A128: =IF(Срок_Кредита<116,"",116) ->  | W128: 0 | X128: 0
A129: =IF(Срок_Кредита<117,"",117) ->  | W129: 0 | X129: 0
A130: =IF(Срок_Кредита<118,"",118) ->  | W130: 0 | X130: 0
A131: =IF(Срок_Кредита<119,"",119) ->  | W131: 0 | X131: 0
A132: =IF(Срок_Кредита<120,"",120) ->  | W132: 0 | X132: 0
